[Event "*** Titled Tuesday Blitz"]
[Site "Chess.com"]
[Date "2019.09.03"]
[Round "5"]
[White "Alohamora11"]
[Black "IMRosen"]
[Result "1-0"]
[WhiteElo "2467"]
[BlackElo "2584"]
[TimeControl "180+2"]
[EndTime "16:08:33 PDT"]
[Termination "Alohamora11 won by resignation"]

1. e4 {[%clk 0:03:01.9]} 1... e5 {[%clk 0:03:00.5]} 2. Nf3 {[%clk 0:03:02]} 2...
Nf6 {[%clk 0:03:01.8]} 3. Nxe5 {[%clk 0:03:00.1]} 3... Nc6 {[%clk 0:03:03.2]} 4.
d4 {[%clk 0:02:52.8]} 4... Nxe4 {[%clk 0:02:35.9]} 5. Nxc6 {[%clk 0:02:44.9]}
5... dxc6 {[%clk 0:02:29.7]} 6. Bd3 {[%clk 0:02:22.6]} 6... Nf6 {[%clk
0:02:28.4]} 7. c3 {[%clk 0:02:13.3]} 7... Bg4 {[%clk 0:02:21.1]} 8. f3 {[%clk
0:02:11.3]} 8... Be6 {[%clk 0:02:20.5]} 9. Bg5 {[%clk 0:02:11]} 9... Qd5 {[%clk
0:02:14.1]} 10. Qd2 {[%clk 0:02:01.2]} 10... O-O-O {[%clk 0:02:06.9]} 11. Qf4
{[%clk 0:01:44.8]} 11... Bd6 {[%clk 0:02:04.7]} 12. Qh4 {[%clk 0:01:44.3]} 12...
c5 {[%clk 0:01:44.6]} 13. Bxf6 {[%clk 0:01:30.9]} 13... gxf6 {[%clk 0:01:43.1]}
14. Be4 {[%clk 0:01:30.7]} 14... Qc4 {[%clk 0:01:30.2]} 15. dxc5 {[%clk
0:01:27.9]} 15... Bxc5 {[%clk 0:01:27.8]} 16. Nd2 {[%clk 0:01:19.4]} 16... Rxd2
{[%clk 0:01:18.9]} 17. Kxd2 {[%clk 0:01:19.5]} 17... Rd8+ {[%clk 0:01:16.2]} 18.
Ke1 {[%clk 0:01:06.7]} 18... f5 {[%clk 0:01:15.3]} 19. Bxb7+ {[%clk 0:01:07]}
19... Kxb7 {[%clk 0:01:17.2]} 20. Qxd8 {[%clk 0:00:58.2]} 20... Qf4 {[%clk
0:00:46.2]} 21. Qd2 {[%clk 0:00:37.6]} 21... Be3 {[%clk 0:00:44.5]} 22. Qe2
{[%clk 0:00:34.8]} 22... Bc4 {[%clk 0:00:40.6]} 23. g3 {[%clk 0:00:36]} 23...
Bxe2 {[%clk 0:00:34.1]} 24. gxf4 {[%clk 0:00:36.4]} 24... Bxf3 {[%clk
0:00:35.1]} 25. Rf1 {[%clk 0:00:36.9]} 25... Bg2 {[%clk 0:00:32]} 26. Ke2 {[%clk
0:00:36]} 26... Bc5 {[%clk 0:00:20.8]} 27. Rg1 {[%clk 0:00:29.2]} 27... Bd5
{[%clk 0:00:15.3]} 28. Rg7 {[%clk 0:00:28.4]} 28... h6 {[%clk 0:00:15]} 29. Rh7
{[%clk 0:00:28.3]} 29... Bd6 {[%clk 0:00:16.2]} 30. Rf1 {[%clk 0:00:20.6]} 30...
Bc4+ {[%clk 0:00:16.8]} 31. Ke1 {[%clk 0:00:21.5]} 31... Bxf1 {[%clk 0:00:17.5]}
32. Kxf1 {[%clk 0:00:23.4]} 32... Bxf4 {[%clk 0:00:18.9]} 33. Rxf7 {[%clk
0:00:24.5]} 33... Bxh2 {[%clk 0:00:17.2]} 34. Rxf5 {[%clk 0:00:25.4]} 34... Bg3
{[%clk 0:00:15]} 35. Kg2 {[%clk 0:00:25.3]} 35... Be1 {[%clk 0:00:15.2]} 36. Rd5
{[%clk 0:00:24.4]} 36... Bh4 {[%clk 0:00:14.3]} 37. Kf3 {[%clk 0:00:24.6]} 37...
Kc6 {[%clk 0:00:12.3]} 38. Ke4 {[%clk 0:00:25.5]} 38... Bg5 {[%clk 0:00:11.7]}
39. b4 {[%clk 0:00:26]} 39... a6 {[%clk 0:00:12.1]} 40. a4 {[%clk 0:00:26.7]}
40... Kb6 {[%clk 0:00:11.7]} 41. Rf5 {[%clk 0:00:25.6]} 41... Bd2 {[%clk
0:00:11.3]} 42. Kd3 {[%clk 0:00:26.7]} 42... Bg5 {[%clk 0:00:11.7]} 43. a5+
{[%clk 0:00:24.9]} 43... Kb7 {[%clk 0:00:12.3]} 44. c4 {[%clk 0:00:26]} 44...
Bh4 {[%clk 0:00:10.5]} 45. b5 {[%clk 0:00:21.4]} 45... Be1 {[%clk 0:00:09.9]}
46. bxa6+ {[%clk 0:00:11.6]} 46... Kxa6 {[%clk 0:00:11.4]} 47. Rf6+ {[%clk
0:00:11.1]} 47... Kxa5 {[%clk 0:00:10.9]} 48. Rxh6 {[%clk 0:00:13]} 48... Bg3
{[%clk 0:00:09.7]} 49. Ke4 {[%clk 0:00:12.9]} 49... Kb4 {[%clk 0:00:06.6]} 50.
Kd5 {[%clk 0:00:14]} 50... Bf4 {[%clk 0:00:04.6]} 51. Rh4 {[%clk 0:00:14.5]}
51... Bg3 {[%clk 0:00:05]} 52. Rh8 {[%clk 0:00:15.3]} 52... Bf4 {[%clk
0:00:05.7]} 53. Rb8+ {[%clk 0:00:15.6]} 53... Kc3 {[%clk 0:00:05.6]} 54. Rc8
{[%clk 0:00:12.2]} 54... Kb4 {[%clk 0:00:05.5]} 55. Rb8+ {[%clk 0:00:09]} 55...
Kc3 {[%clk 0:00:06.1]} 56. Kc5 {[%clk 0:00:10.4]} 56... Bg3 {[%clk 0:00:04.6]}
57. Rc8 {[%clk 0:00:10.2]} 57... Bf2+ {[%clk 0:00:02.8]} 58. Kb5 {[%clk
0:00:10.9]} 58... Bg3 {[%clk 0:00:04]} 59. c5 {[%clk 0:00:11.7]} 59... Kd4
{[%clk 0:00:05.4]} 60. Rd8+ {[%clk 0:00:12.2]} 60... Ke5 {[%clk 0:00:05.1]} 61.
c6 {[%clk 0:00:12.4]} 61... Ke6 {[%clk 0:00:05.5]} 62. Rd7 {[%clk 0:00:13.8]}
62... Bd6 {[%clk 0:00:05.5]} 63. Ka6 {[%clk 0:00:15.7]} 63... Ke5 {[%clk
0:00:02.6]} 64. Kb7 {[%clk 0:00:17]} 64... Kd5 {[%clk 0:00:03]} 65. Rxc7 {[%clk
0:00:17.1]} 65... Kc5 {[%clk 0:00:04.1]} 66. Rd7 {[%clk 0:00:17.8]} 66... Be5
{[%clk 0:00:03]} 67. c7 {[%clk 0:00:18.5]} 67... Kb4 {[%clk 0:00:03.8]} 68. c8=Q
{[%clk 0:00:18.5]} 68... Bc3 {[%clk 0:00:05.1]} 69. Qc6 {[%clk 0:00:18.3]} 69...
Kb3 {[%clk 0:00:05.7]} 70. Rd3 {[%clk 0:00:18.6]} 70... Kb4 {[%clk 0:00:03.7]}
1-0

[Event "*** Titled Tuesday Blitz"]
[Site "Chess.com"]
[Date "2019.09.03"]
[Round "5"]
[White "laboratorio25"]
[Black "Snegokhod"]
[Result "0-1"]
[WhiteElo "2403"]
[BlackElo "2569"]
[TimeControl "180+2"]
[EndTime "16:08:44 PDT"]
[Termination "Snegokhod won by resignation"]

1. e4 {[%clk 0:03:01.9]} 1... c5 {[%clk 0:03:00.5]} 2. Nf3 {[%clk 0:03:02.7]}
2... e6 {[%clk 0:03:01.8]} 3. d4 {[%clk 0:03:03.7]} 3... cxd4 {[%clk 0:03:03]}
4. Nxd4 {[%clk 0:03:05.6]} 4... Nc6 {[%clk 0:03:04.4]} 5. Nc3 {[%clk 0:03:06.6]}
5... Qc7 {[%clk 0:03:05.5]} 6. Be3 {[%clk 0:03:04.5]} 6... a6 {[%clk 0:03:06.6]}
7. Qf3 {[%clk 0:03:03.7]} 7... Nge7 {[%clk 0:03:06.6]} 8. O-O-O {[%clk
0:03:03.8]} 8... Ng6 {[%clk 0:03:07.2]} 9. Qg3 {[%clk 0:02:46.4]} 9... Bd6
{[%clk 0:03:06.9]} 10. Qg4 {[%clk 0:02:32.7]} 10... Be5 {[%clk 0:02:59.7]} 11.
g3 {[%clk 0:02:13.6]} 11... d6 {[%clk 0:02:52.3]} 12. Qe2 {[%clk 0:01:58.5]}
12... Bd7 {[%clk 0:02:27.9]} 13. f4 {[%clk 0:01:58.6]} 13... Bf6 {[%clk
0:02:28.9]} 14. f5 {[%clk 0:01:43.2]} 14... Nge5 {[%clk 0:02:10.7]} 15. Bh3
{[%clk 0:01:31.1]} 15... Nxd4 {[%clk 0:02:10]} 16. Bxd4 {[%clk 0:01:31.9]} 16...
O-O {[%clk 0:02:07.6]} 17. Kb1 {[%clk 0:01:30.6]} 17... b5 {[%clk 0:02:05.6]}
18. Qf2 {[%clk 0:01:13.6]} 18... Rfc8 {[%clk 0:01:45.6]} 19. Rc1 {[%clk
0:01:07.7]} 19... b4 {[%clk 0:01:26.5]} 20. Ne2 {[%clk 0:01:03.7]} 20... exf5
{[%clk 0:00:49.9]} 21. Bxf5 {[%clk 0:00:49.3]} 21... Bxf5 {[%clk 0:00:29.4]} 22.
Qxf5 {[%clk 0:00:50]} 22... Nd7 {[%clk 0:00:22.1]} 23. Rhd1 {[%clk 0:00:42.2]}
23... Re8 {[%clk 0:00:19.3]} 24. Nf4 {[%clk 0:00:27.3]} 24... Be5 {[%clk
0:00:20.3]} 25. Nd5 {[%clk 0:00:26.7]} 25... Qb7 {[%clk 0:00:20.8]} 26. Be3
{[%clk 0:00:20.9]} 26... Rac8 {[%clk 0:00:20.4]} 27. Rf1 {[%clk 0:00:21.7]}
27... Nf6 {[%clk 0:00:20.8]} 28. Nxf6+ {[%clk 0:00:19.4]} 28... Bxf6 {[%clk
0:00:21.8]} 29. Bg5 {[%clk 0:00:14]} 29... Re5 {[%clk 0:00:19.1]} 30. Qxc8+
{[%clk 0:00:07.2]} 30... Qxc8 {[%clk 0:00:19.4]} 31. Bxf6 {[%clk 0:00:08.9]}
31... gxf6 {[%clk 0:00:20.9]} 32. Rxf6 {[%clk 0:00:10.6]} 32... Rxe4 {[%clk
0:00:21.1]} 33. Rxd6 {[%clk 0:00:11.5]} 33... Qc4 {[%clk 0:00:21.1]} 34. Rd3
{[%clk 0:00:09.1]} 34... Re2 {[%clk 0:00:21]} 35. h4 {[%clk 0:00:10]} 35... Rxc2
{[%clk 0:00:21.7]} 36. Rd8+ {[%clk 0:00:09]} 36... Kg7 {[%clk 0:00:23.1]} 37.
Rxc2 {[%clk 0:00:10.5]} 37... Qe4 {[%clk 0:00:23]} 38. b3 {[%clk 0:00:07.5]}
38... Qe1+ {[%clk 0:00:21.9]} 39. Rc1 {[%clk 0:00:04.4]} 39... Qxg3 {[%clk
0:00:21.8]} 40. Rd4 {[%clk 0:00:04.5]} 40... a5 {[%clk 0:00:19.6]} 41. Rcd1
{[%clk 0:00:05.5]} 41... Qe5 {[%clk 0:00:19.6]} 42. Kb2 {[%clk 0:00:04.8]} 42...
h5 {[%clk 0:00:17.2]} 43. Rd2 {[%clk 0:00:06.7]} 43... Kg6 {[%clk 0:00:17.9]}
44. Kc2 {[%clk 0:00:08.3]} 44... Qf5+ {[%clk 0:00:18.5]} 45. Kd1 {[%clk
0:00:08.7]} 45... Qh3 {[%clk 0:00:19]} 46. Kc2 {[%clk 0:00:10.3]} 46... Qf5+
{[%clk 0:00:19.4]} 47. Kc1 {[%clk 0:00:10.4]} 47... Qf3 {[%clk 0:00:19.9]} 48.
R4d3 {[%clk 0:00:10.8]} 48... Qf1+ {[%clk 0:00:20.2]} 49. Kc2 {[%clk 0:00:11.7]}
49... f5 {[%clk 0:00:21.3]} 50. Rd6+ {[%clk 0:00:12]} 50... Kf7 {[%clk
0:00:22.6]} 51. Rc6 {[%clk 0:00:13.4]} 51... Qb5 {[%clk 0:00:22.1]} 52. Rc4
{[%clk 0:00:14]} 52... Ke6 {[%clk 0:00:22.3]} 53. Rf2 {[%clk 0:00:15]} 53... Qe5
{[%clk 0:00:20.2]} 54. Kd3 {[%clk 0:00:14.9]} 54... Qg3+ {[%clk 0:00:19.3]} 55.
Ke2 {[%clk 0:00:16.5]} 55... a4 {[%clk 0:00:16.6]} 56. Rf3 {[%clk 0:00:16.6]}
56... Qg2+ {[%clk 0:00:17.4]} 57. Rf2 {[%clk 0:00:18.1]} 57... Qg3 {[%clk
0:00:18.4]} 58. bxa4 {[%clk 0:00:19.3]} 58... Qa3 {[%clk 0:00:18.5]} 59. Rc2
{[%clk 0:00:18.2]} 59... Qxa4 {[%clk 0:00:17.7]} 60. Kf1 {[%clk 0:00:19.5]}
60... Qa3 {[%clk 0:00:18.5]} 61. Rce2+ {[%clk 0:00:20]} 61... Kf6 {[%clk
0:00:19.6]} 62. Kg2 {[%clk 0:00:21.5]} 62... Qa8+ {[%clk 0:00:19.5]} 63. Rf3
{[%clk 0:00:22.8]} 63... Qd5 {[%clk 0:00:19.3]} 64. Rf2 {[%clk 0:00:24.4]} 64...
Ke6 {[%clk 0:00:16.1]} 65. Kg3 {[%clk 0:00:25.6]} 65... Qe5+ {[%clk 0:00:16.5]}
66. Kg2 {[%clk 0:00:26.8]} 66... Qe4 {[%clk 0:00:17.1]} 67. Kg3 {[%clk 0:00:28]}
67... Qg4+ {[%clk 0:00:17.8]} 68. Kh2 {[%clk 0:00:29.5]} 68... Qxh4+ {[%clk
0:00:19.7]} 69. Kg1 {[%clk 0:00:30.9]} 69... Qg4+ {[%clk 0:00:20.6]} 70. Kf1
{[%clk 0:00:32.4]} 70... h4 {[%clk 0:00:21.4]} 71. Rf4 {[%clk 0:00:32]} 71...
Qg3 {[%clk 0:00:20.9]} 72. R2f3 {[%clk 0:00:31.8]} 72... Qg5 {[%clk 0:00:19.8]}
73. Rxb4 {[%clk 0:00:31.8]} 73... Qc1+ {[%clk 0:00:20.5]} 74. Ke2 {[%clk
0:00:31]} 74... Qc2+ {[%clk 0:00:21.3]} 75. Kf1 {[%clk 0:00:31.7]} 75... Qd1+
{[%clk 0:00:20.3]} 76. Kg2 {[%clk 0:00:32.8]} 76... Qd2+ {[%clk 0:00:21.4]} 77.
Rf2 {[%clk 0:00:33.4]} 77... Qxb4 {[%clk 0:00:23.3]} 78. Re2+ {[%clk 0:00:34.7]}
78... Kf6 {[%clk 0:00:24.3]} 79. Kh3 {[%clk 0:00:36.2]} 79... Qg4+ {[%clk
0:00:24]} 0-1

[Event "*** Titled Tuesday Blitz"]
[Site "Chess.com"]
[Date "2019.09.03"]
[Round "5"]
[White "StoreySniper"]
[Black "Ginzburg_Yakov"]
[Result "1/2-1/2"]
[WhiteElo "2366"]
[BlackElo "2516"]
[TimeControl "180+2"]
[EndTime "16:08:45 PDT"]
[Termination "Game drawn - insufficient material"]

1. e4 {[%clk 0:03:01.9]} 1... c5 {[%clk 0:02:59.8]} 2. Nf3 {[%clk 0:03:02.7]}
2... Nc6 {[%clk 0:03:00.5]} 3. Bb5 {[%clk 0:03:02.4]} 3... g6 {[%clk 0:03:00.9]}
4. O-O {[%clk 0:03:02.5]} 4... Bg7 {[%clk 0:03:01.9]} 5. c3 {[%clk 0:03:02]}
5... e5 {[%clk 0:03:02.7]} 6. Na3 {[%clk 0:02:58.6]} 6... Nge7 {[%clk
0:03:02.7]} 7. Nc4 {[%clk 0:02:54.2]} 7... d6 {[%clk 0:03:00.7]} 8. Ne3 {[%clk
0:02:52.7]} 8... O-O {[%clk 0:03:00.4]} 9. Nd5 {[%clk 0:02:50.6]} 9... Nxd5
{[%clk 0:03:00.2]} 10. exd5 {[%clk 0:02:51.3]} 10... Ne7 {[%clk 0:03:02]} 11. c4
{[%clk 0:02:48.9]} 11... Nf5 {[%clk 0:02:11.2]} 12. d3 {[%clk 0:02:47.9]} 12...
Nd4 {[%clk 0:02:08.4]} 13. Nxd4 {[%clk 0:02:48.4]} 13... exd4 {[%clk 0:02:09.3]}
14. Bf4 {[%clk 0:02:47.6]} 14... Bf5 {[%clk 0:02:06.8]} 15. Qf3 {[%clk
0:02:47.2]} 15... h5 {[%clk 0:01:36.6]} 16. h3 {[%clk 0:02:47.2]} 16... h4
{[%clk 0:01:32.3]} 17. Rfe1 {[%clk 0:02:47]} 17... Qf6 {[%clk 0:01:11.1]} 18.
Bh2 {[%clk 0:02:31.5]} 18... Rad8 {[%clk 0:01:10.1]} 19. Re2 {[%clk 0:02:28.6]}
19... g5 {[%clk 0:01:10]} 20. Rae1 {[%clk 0:02:25.3]} 20... Qg6 {[%clk
0:01:10.4]} 21. Rd2 {[%clk 0:02:11.7]} 21... Bh6 {[%clk 0:01:10.4]} 22. Rdd1
{[%clk 0:02:12]} 22... g4 {[%clk 0:01:03.3]} 23. hxg4 {[%clk 0:02:00.6]} 23...
Bxg4 {[%clk 0:01:04]} 24. Qe4 {[%clk 0:02:01.6]} 24... Qxe4 {[%clk 0:01:04.8]}
25. dxe4 {[%clk 0:02:00.8]} 25... Bxd1 {[%clk 0:01:06.1]} 26. Rxd1 {[%clk
0:02:01.8]} 26... f5 {[%clk 0:01:03.7]} 27. e5 {[%clk 0:01:58.3]} 27... dxe5
{[%clk 0:00:53.9]} 28. Bxe5 {[%clk 0:01:59.3]} 28... Kf7 {[%clk 0:00:54]} 29.
Bc7 {[%clk 0:01:54.6]} 29... a6 {[%clk 0:00:51]} 30. Bxd8 {[%clk 0:01:51.3]}
30... axb5 {[%clk 0:00:51.2]} 31. Bxh4 {[%clk 0:01:52]} 31... bxc4 {[%clk
0:00:51.1]} 32. d6 {[%clk 0:01:51.8]} 32... Ke6 {[%clk 0:00:44.7]} 33. Re1+
{[%clk 0:01:52.6]} 33... Kd7 {[%clk 0:00:43.7]} 34. Re7+ {[%clk 0:01:50.5]}
34... Kxd6 {[%clk 0:00:41.4]} 35. Rh7 {[%clk 0:01:51.3]} 35... Re8 {[%clk
0:00:14.8]} 36. Rxh6+ {[%clk 0:01:52]} 36... Kd5 {[%clk 0:00:16.1]} 37. Bg3
{[%clk 0:01:45.4]} 37... Ke4 {[%clk 0:00:16.6]} 38. Kf1 {[%clk 0:01:32.3]} 38...
Kd3 {[%clk 0:00:15.9]} 39. Bf4 {[%clk 0:01:25.4]} 39... Kc2 {[%clk 0:00:16.1]}
40. Rb6 {[%clk 0:01:24]} 40... Re4 {[%clk 0:00:16]} 41. Bh6 {[%clk 0:00:59]}
41... d3 {[%clk 0:00:12.3]} 42. f3 {[%clk 0:00:59.1]} 42... Rh4 {[%clk
0:00:09.5]} 43. Bg5 {[%clk 0:00:45.9]} 43... Rh5 {[%clk 0:00:10.4]} 44. Be3
{[%clk 0:00:44.2]} 44... Rh1+ {[%clk 0:00:11.2]} 45. Kf2 {[%clk 0:00:44.8]}
45... Ra1 {[%clk 0:00:08.6]} 46. Rxb7 {[%clk 0:00:33.3]} 46... Rxa2 {[%clk
0:00:09.7]} 47. Rb5 {[%clk 0:00:34.7]} 47... d2 {[%clk 0:00:06.4]} 48. Bxd2
{[%clk 0:00:34.5]} 48... Kxd2 {[%clk 0:00:07.7]} 49. Rxc5 {[%clk 0:00:36.4]}
49... Rxb2 {[%clk 0:00:08.8]} 50. Rxf5 {[%clk 0:00:31.2]} 50... c3 {[%clk
0:00:06.4]} 51. Rd5+ {[%clk 0:00:32.2]} 51... Kc1+ {[%clk 0:00:07.1]} 52. Kg3
{[%clk 0:00:18.9]} 52... c2 {[%clk 0:00:07.9]} 53. Rc5 {[%clk 0:00:19.2]} 53...
Kb1 {[%clk 0:00:04.3]} 54. Kf4 {[%clk 0:00:18.8]} 54... c1=Q+ {[%clk 0:00:04.6]}
55. Rxc1+ {[%clk 0:00:19.4]} 55... Kxc1 {[%clk 0:00:06.3]} 56. g4 {[%clk
0:00:21.2]} 56... Kd2 {[%clk 0:00:07.5]} 57. g5 {[%clk 0:00:22.6]} 57... Kd3
{[%clk 0:00:08.6]} 58. g6 {[%clk 0:00:23.4]} 58... Kd4 {[%clk 0:00:09]} 59. Kf5
{[%clk 0:00:24]} 59... Kd5 {[%clk 0:00:05.4]} 60. g7 {[%clk 0:00:19.2]} 60...
Rb8 {[%clk 0:00:04]} 61. Kf6 {[%clk 0:00:19.4]} 61... Kd4 {[%clk 0:00:05.2]} 62.
Kf7 {[%clk 0:00:15.3]} 62... Ke5 {[%clk 0:00:06.3]} 63. g8=Q {[%clk 0:00:12.1]}
63... Rxg8 {[%clk 0:00:06.5]} 64. Kxg8 {[%clk 0:00:13.1]} 64... Kf4 {[%clk
0:00:08.1]} 65. Kf7 {[%clk 0:00:13.8]} 65... Kxf3 {[%clk 0:00:06.2]} 1/2-1/2

[Event "*** Titled Tuesday Blitz"]
[Site "Chess.com"]
[Date "2019.09.03"]
[Round "5"]
[White "Sanan_Sjugirov"]
[Black "Bigfish1995"]
[Result "1/2-1/2"]
[WhiteElo "2870"]
[BlackElo "3057"]
[TimeControl "180+2"]
[EndTime "16:08:50 PDT"]
[Termination "Game drawn - insufficient material"]

1. e4 {[%clk 0:03:01.9]} 1... c5 {[%clk 0:02:59.5]} 2. Nf3 {[%clk 0:03:01.6]}
2... d6 {[%clk 0:03:00.4]} 3. d4 {[%clk 0:03:00.4]} 3... cxd4 {[%clk 0:03:01.5]}
4. Nxd4 {[%clk 0:03:02.3]} 4... Nf6 {[%clk 0:03:02.8]} 5. Nc3 {[%clk 0:03:01.7]}
5... a6 {[%clk 0:03:04.2]} 6. Be3 {[%clk 0:02:57.2]} 6... e6 {[%clk 0:03:03.5]}
7. Be2 {[%clk 0:02:51.6]} 7... Be7 {[%clk 0:03:01.4]} 8. f4 {[%clk 0:02:49.8]}
8... Nc6 {[%clk 0:02:51.5]} 9. g4 {[%clk 0:02:42]} 9... h6 {[%clk 0:02:47.5]}
10. Qd2 {[%clk 0:02:09]} 10... Bd7 {[%clk 0:02:25.4]} 11. O-O-O {[%clk
0:02:02.1]} 11... b5 {[%clk 0:02:26.5]} 12. Bf3 {[%clk 0:01:37.1]} 12... Rc8
{[%clk 0:02:17]} 13. h4 {[%clk 0:01:23.6]} 13... b4 {[%clk 0:01:43.8]} 14. Nce2
{[%clk 0:01:23.7]} 14... d5 {[%clk 0:01:43]} 15. e5 {[%clk 0:01:16.9]} 15...
Nxd4 {[%clk 0:01:33.3]} 16. Nxd4 {[%clk 0:01:16.5]} 16... Ne4 {[%clk 0:01:29.1]}
17. Bxe4 {[%clk 0:01:17.1]} 17... dxe4 {[%clk 0:01:31]} 18. Qg2 {[%clk
0:01:07.5]} 18... h5 {[%clk 0:00:55.4]} 19. gxh5 {[%clk 0:01:05.3]} 19... Kf8
{[%clk 0:00:48.5]} 20. Rhg1 {[%clk 0:01:04.8]} 20... Rh7 {[%clk 0:00:43.3]} 21.
h6 {[%clk 0:01:05]} 21... Qa5 {[%clk 0:00:26.5]} 22. Kb1 {[%clk 0:00:53.7]}
22... Kg8 {[%clk 0:00:19.9]} 23. Qxe4 {[%clk 0:00:33.4]} 23... Rxh6 {[%clk
0:00:18.7]} 24. f5 {[%clk 0:00:34.3]} 24... Rxh4 {[%clk 0:00:13.3]} 25. Qg2
{[%clk 0:00:35.2]} 25... Qxe5 {[%clk 0:00:14.4]} 26. Nf3 {[%clk 0:00:32.2]}
26... Bc6 {[%clk 0:00:13.4]} 27. Nxe5 {[%clk 0:00:17.2]} 27... Bxg2 {[%clk
0:00:14.5]} 28. Rxg2 {[%clk 0:00:19.1]} 28... exf5 {[%clk 0:00:16]} 29. Nd3
{[%clk 0:00:08]} 29... g6 {[%clk 0:00:11.9]} 30. b3 {[%clk 0:00:05.2]} 30... Kg7
{[%clk 0:00:10.1]} 31. Bc1 {[%clk 0:00:06.2]} 31... a5 {[%clk 0:00:10.1]} 32.
Bb2+ {[%clk 0:00:07.4]} 32... Bf6 {[%clk 0:00:11.3]} 33. Rf1 {[%clk 0:00:06.4]}
33... Bxb2 {[%clk 0:00:11.6]} 34. Kxb2 {[%clk 0:00:08.3]} 34... Kf6 {[%clk
0:00:12.9]} 35. a3 {[%clk 0:00:08.9]} 35... bxa3+ {[%clk 0:00:12.4]} 36. Kxa3
{[%clk 0:00:10.8]} 36... Re4 {[%clk 0:00:13.3]} 37. c4 {[%clk 0:00:07.5]} 37...
Re3 {[%clk 0:00:14.2]} 38. Nf4 {[%clk 0:00:07.9]} 38... Ke5 {[%clk 0:00:09.5]}
39. Nd5 {[%clk 0:00:08.8]} 39... Rh3 {[%clk 0:00:10.7]} 40. Re2+ {[%clk
0:00:08.6]} 40... Kd6 {[%clk 0:00:11.4]} 41. Rd1 {[%clk 0:00:08.7]} 41... Kc5
{[%clk 0:00:10.2]} 42. Re7 {[%clk 0:00:05.3]} 42... a4 {[%clk 0:00:11.2]} 43.
Ka2 {[%clk 0:00:03.6]} 43... axb3+ {[%clk 0:00:11.8]} 44. Kb2 {[%clk 0:00:05]}
44... Rc6 {[%clk 0:00:10.5]} 45. Rxf7 {[%clk 0:00:05.5]} 45... Kxc4 {[%clk
0:00:11.6]} 46. Rd2 {[%clk 0:00:05.5]} 46... Rf3 {[%clk 0:00:05.7]} 47. Re7
{[%clk 0:00:06.1]} 47... Kc5 {[%clk 0:00:06]} 48. Re5 {[%clk 0:00:06.3]} 48...
Kd6 {[%clk 0:00:05.7]} 49. Ree2 {[%clk 0:00:06.8]} 49... Kc5 {[%clk 0:00:06.8]}
50. Nc3 {[%clk 0:00:07.4]} 50... Kb4 {[%clk 0:00:07.4]} 51. Nd5+ {[%clk
0:00:08.7]} 51... Ka5 {[%clk 0:00:08.8]} 52. Re1 {[%clk 0:00:09.3]} 52... Kb5
{[%clk 0:00:09.2]} 53. Re5 {[%clk 0:00:09.4]} 53... Ka4 {[%clk 0:00:08.5]} 54.
Re1 {[%clk 0:00:09.5]} 54... g5 {[%clk 0:00:07.1]} 55. Re5 {[%clk 0:00:09.5]}
55... Rc2+ {[%clk 0:00:06.4]} 56. Rxc2 {[%clk 0:00:10.6]} 56... bxc2 {[%clk
0:00:08]} 57. Kxc2 {[%clk 0:00:12.2]} 57... g4 {[%clk 0:00:09.7]} 58. Ne3 {[%clk
0:00:09.4]} 58... g3 {[%clk 0:00:09.6]} 59. Ng2 {[%clk 0:00:04.5]} 59... Rf2+
{[%clk 0:00:10.3]} 60. Kd3 {[%clk 0:00:05.9]} 60... Rxg2 {[%clk 0:00:10.3]} 61.
Rxf5 {[%clk 0:00:07.2]} 61... Rb2 {[%clk 0:00:07.8]} 62. Rg5 {[%clk 0:00:08.1]}
62... Kb4 {[%clk 0:00:07.5]} 63. Ke3 {[%clk 0:00:08.5]} 63... Rb3+ {[%clk
0:00:07.8]} 64. Kf4 {[%clk 0:00:09.2]} 64... Rc3 {[%clk 0:00:09.2]} 65. Rxg3
{[%clk 0:00:10.2]} 65... Rxg3 {[%clk 0:00:10.8]} 66. Kxg3 {[%clk 0:00:12.1]}
1/2-1/2